Workbook

Sheet Macro 1
B2: VBA for ExportAsFixedFormat PDF: Example 1
B4: Sales 2010
B5: Salesperson | C5: Jan | D5: Feb | E5: Mar | F5: Apr | G5: May | H5: Jun | I5: Jul | J5: Aug | K5: Sep | L5: Oct | M5: Nov | N5: Dec
B6: Luka | C6: 45673 | D6: =C6+10 -> 45683 | E6: =D6+10 -> 45693 | F6: 45703 | G6: 45713 | H6: 45723 | I6: 45733 | J6: 45743 | K6: 45753 | L6: 45763 | M6: 45773 | N6: =M6+10 -> 45783
B7: Oliver | C7: 78392 | D7: =C7+10 -> 78402 | E7: 78412 | F7: 78422 | G7: 78432 | H7: 78442 | I7: 78452 | J7: 78462 | K7: 78472 | L7: 78482 | M7: 78492 | N7: 78502
B8: Robin | C8: 89346 | D8: 89356 | E8: 89366 | F8: 89376 | G8: 89386 | H8: 89396 | I8: 89406 | J8: 89416 | K8: 89426 | L8: 89436 | M8: 89446 | N8: 89456
B9: Aron | C9: 67876 | D9: 67886 | E9: 67896 | F9: 67906 | G9: 67916 | H9: 67926 | I9: 67936 | J9: 67946 | K9: 67956 | L9: 67966 | M9: 67976 | N9: 67986
B10: Leo | C10: 47167 | D10: 47177 | E10: 47187 | F10: 47197 | G10: 47207 | H10: 47217 | I10: 47227 | J10: 47237 | K10: 47247 | L10: 47257 | M10: 47267 | N10: 47277
B11: Henry | C11: 90362 | D11: 90372 | E11: 90382 | F11: 90392 | G11: 90402 | H11: 90412 | I11: 90422 | J11: 90432 | K11: 90442 | L11: 90452 | M11: 90462 | N11: 90472
B12: James | C12: 78345 | D12: 78355 | E12: 78365 | F12: 78375 | G12: 78385 | H12: 78395 | I12: 78405 | J12: 78415 | K12: 78425 | L12: 78435 | M12: 78445 | N12: 78455
B14: Sales 2011
B15: Salesperson | C15: Jan | D15: Feb | E15: Mar | F15: Apr | G15: May | H15: Jun | I15: Jul | J15: Aug | K15: Sep | L15: Oct | M15: Nov | N15: Dec
B16: Luka | C16: 45673 | D16: =C16+10 -> 45683 | E16: =D16+10 -> 45693 | F16: 45703 | G16: 45713 | H16: 45723 | I16: 45733 | J16: 45743 | K16: 45753 | L16: 45763 | M16: 45773 | N16: =M16+10 -> 45783
B17: Oliver | C17: =C16+20 -> 45693 | D17: =D16+20 -> 45703 | E17: 45713 | F17: 45723 | G17: 45733 | H17: 45743 | I17: 45753 | J17: 45763 | K17: 45773 | L17: 45783 | M17: 45793 | N17: 45803
B18: Robin | C18: =C17+20 -> 45713 | D18: 45723 | E18: 45733 | F18: 45743 | G18: 45753 | H18: 45763 | I18: 45773 | J18: 45783 | K18: 45793 | L18: 45803 | M18: 45813 | N18: 45823
B19: Aron | C19: 45733 | D19: 45743 | E19: 45753 | F19: 45763 | G19: 45773 | H19: 45783 | I19: 45793 | J19: 45803 | K19: 45813 | L19: 45823 | M19: 45833 | N19: 45843
B20: Leo | C20: 45753 | D20: 45763 | E20: 45773 | F20: 45783 | G20: 45793 | H20: 45803 | I20: 45813 | J20: 45823 | K20: 45833 | L20: 45843 | M20: 45853 | N20: 45863
B21: Henry | C21: 45773 | D21: 45783 | E21: 45793 | F21: 45803 | G21: 45813 | H21: 45823 | I21: 45833 | J21: 45843 | K21: 45853 | L21: 45863 | M21: 45873 | N21: 45883
B22: James | C22: 45793 | D22: 45803 | E22: 45813 | F22: 45823 | G22: 45833 | H22: 45843 | I22: 45853 | J22: 45863 | K22: 45873 | L22: 45883 | M22: 45893 | N22: 45903
B24: Sales 2012
B25: Salesperson | C25: Jan | D25: Feb | E25: Mar | F25: Apr | G25: May | H25: Jun | I25: Jul | J25: Aug | K25: Sep | L25: Oct | M25: Nov | N25: Dec
B26: Luka | C26: 45673 | D26: =C26+10 -> 45683 | E26: =D26+10 -> 45693 | F26: 45703 | G26: 45713 | H26: 45723 | I26: 45733 | J26: 45743 | K26: 45753 | L26: 45763 | M26: 45773 | N26: =M26+10 -> 45783
B27: Oliver | C27: =C26+30 -> 45703 | D27: =D26+30 -> 45713 | E27: 45723 | F27: 45733 | G27: 45743 | H27: 45753 | I27: 45763 | J27: 45773 | K27: 45783 | L27: 45793 | M27: 45803 | N27: 45813
B28: Robin | C28: =C27+30 -> 45733 | D28: 45743 | E28: 45753 | F28: 45763 | G28: 45773 | H28: 45783 | I28: 45793 | J28: 45803 | K28: 45813 | L28: 45823 | M28: 45833 | N28: 45843
B29: Aron | C29: 45763 | D29: 45773 | E29: 45783 | F29: 45793 | G29: 45803 | H29: 45813 | I29: 45823 | J29: 45833 | K29: 45843 | L29: 45853 | M29: 45863 | N29: 45873
B30: Leo | C30: 45793 | D30: 45803 | E30: 45813 | F30: 45823 | G30: 45833 | H30: 45843 | I30: 45853 | J30: 45863 | K30: 45873 | L30: 45883 | M30: 45893 | N30: 45903
B31: Henry | C31: 45823 | D31: 45833 | E31: 45843 | F31: 45853 | G31: 45863 | H31: 45873 | I31: 45883 | J31: 45893 | K31: 45903 | L31: 45913 | M31: 45923 | N31: 45933
B32: James | C32: 45853 | D32: 45863 | E32: 45873 | F32: 45883 | G32: 45893 | H32: 45903 | I32: 45913 | J32: 45923 | K32: 45933 | L32: 45943 | M32: 45953 | N32: 45963
B34: Sales 2013
B35: Salesperson | C35: Jan | D35: Feb | E35: Mar | F35: Apr | G35: May | H35: Jun | I35: Jul | J35: Aug | K35: Sep | L35: Oct | M35: Nov | N35: Dec
B36: Luka | C36: 45673 | D36: =C36+10 -> 45683 | E36: =D36+10 -> 45693 | F36: 45703 | G36: 45713 | H36: 45723 | I36: 45733 | J36: 45743 | K36: 45753 | L36: 45763 | M36: 45773 | N36: =M36+10 -> 45783
B37: Oliver | C37: 78392 | D37: =C37+10 -> 78402 | E37: 78412 | F37: 78422 | G37: 78432 | H37: 78442 | I37: 78452 | J37: 78462 | K37: 78472 | L37: 78482 | M37: 78492 | N37: 78502
B38: Robin | C38: 89346 | D38: 89356 | E38: 89366 | F38: 89376 | G38: 89386 | H38: 89396 | I38: 89406 | J38: 89416 | K38: 89426 | L38: 89436 | M38: 89446 | N38: 89456
B39: Aron | C39: 67876 | D39: 67886 | E39: 67896 | F39: 67906 | G39: 67916 | H39: 67926 | I39: 67936 | J39: 67946 | K39: 67956 | L39: 67966 | M39: 67976 | N39: 67986
B40: Leo | C40: 47167 | D40: 47177 | E40: 47187 | F40: 47197 | G40: 47207 | H40: 47217 | I40: 47227 | J40: 47237 | K40: 47247 | L40: 47257 | M40: 47267 | N40: 47277
B41: Henry | C41: 90362 | D41: 90372 | E41: 90382 | F41: 90392 | G41: 90402 | H41: 90412 | I41: 90422 | J41: 90432 | K41: 90442 | L41: 90452 | M41: 90462 | N41: 90472
B42: James | C42: 78345 | D42: 78355 | E42: 78365 | F42: 78375 | G42: 78385 | H42: 78395 | I42: 78405 | J42: 78415 | K42: 78425 | L42: 78435 | M42: 78445 | N42: 78455
B44: Sales 2014
B45: Salesperson | C45: Jan | D45: Feb | E45: Mar | F45: Apr | G45: May | H45: Jun | I45: Jul | J45: Aug | K45: Sep | L45: Oct | M45: Nov | N45: Dec
B46: Luka | C46: 45673 | D46: =C46+10 -> 45683 | E46: =D46+10 -> 45693 | F46: 45703 | G46: 45713 | H46: 45723 | I46: 45733 | J46: 45743 | K46: 45753 | L46: 45763 | M46: 45773 | N46: =M46+10 -> 45783
B47: Oliver | C47: =C46+20 -> 45693 | D47: =D46+20 -> 45703 | E47: 45713 | F47: 45723 | G47: 45733 | H47: 45743 | I47: 45753 | J47: 45763 | K47: 45773 | L47: 45783 | M47: 45793 | N47: 45803
B48: Robin | C48: =C47+20 -> 45713 | D48: 45723 | E48: 45733 | F48: 45743 | G48: 45753 | H48: 45763 | I48: 45773 | J48: 45783 | K48: 45793 | L48: 45803 | M48: 45813 | N48: 45823
B49: Aron | C49: 45733 | D49: 45743 | E49: 45753 | F49: 45763 | G49: 45773 | H49: 45783 | I49: 45793 | J49: 45803 | K49: 45813 | L49: 45823 | M49: 45833 | N49: 45843
B50: Leo | C50: 45753 | D50: 45763 | E50: 45773 | F50: 45783 | G50: 45793 | H50: 45803 | I50: 45813 | J50: 45823 | K50: 45833 | L50: 45843 | M50: 45853 | N50: 45863
B51: Henry | C51: 45773 | D51: 45783 | E51: 45793 | F51: 45803 | G51: 45813 | H51: 45823 | I51: 45833 | J51: 45843 | K51: 45853 | L51: 45863 | M51: 45873 | N51: 45883
B52: James | C52: 45793 | D52: 45803 | E52: 45813 | F52: 45823 | G52: 45833 | H52: 45843 | I52: 45853 | J52: 45863 | K52: 45873 | L52: 45883 | M52: 45893 | N52: 45903

Sheet Macro 2
B2: VBA for ExportAsFixedFormat PDF: Example 2
B4: Sales 2010
B5: Salesperson | C5: Jan | D5: Feb | E5: Mar | F5: Apr | G5: May | H5: Jun | I5: Jul | J5: Aug | K5: Sep | L5: Oct | M5: Nov | N5: Dec
B6: Luka | C6: 45673 | D6: =C6+10 -> 45683 | E6: =D6+10 -> 45693 | F6: 45703 | G6: 45713 | H6: 45723 | I6: 45733 | J6: 45743 | K6: 45753 | L6: 45763 | M6: 45773 | N6: =M6+10 -> 45783
B7: Oliver | C7: 78392 | D7: =C7+10 -> 78402 | E7: 78412 | F7: 78422 | G7: 78432 | H7: 78442 | I7: 78452 | J7: 78462 | K7: 78472 | L7: 78482 | M7: 78492 | N7: 78502
B8: Robin | C8: 89346 | D8: 89356 | E8: 89366 | F8: 89376 | G8: 89386 | H8: 89396 | I8: 89406 | J8: 89416 | K8: 89426 | L8: 89436 | M8: 89446 | N8: 89456
B9: Aron | C9: 67876 | D9: 67886 | E9: 67896 | F9: 67906 | G9: 67916 | H9: 67926 | I9: 67936 | J9: 67946 | K9: 67956 | L9: 67966 | M9: 67976 | N9: 67986
B10: Leo | C10: 47167 | D10: 47177 | E10: 47187 | F10: 47197 | G10: 47207 | H10: 47217 | I10: 47227 | J10: 47237 | K10: 47247 | L10: 47257 | M10: 47267 | N10: 47277
B11: Henry | C11: 90362 | D11: 90372 | E11: 90382 | F11: 90392 | G11: 90402 | H11: 90412 | I11: 90422 | J11: 90432 | K11: 90442 | L11: 90452 | M11: 90462 | N11: 90472
B12: James | C12: 78345 | D12: 78355 | E12: 78365 | F12: 78375 | G12: 78385 | H12: 78395 | I12: 78405 | J12: 78415 | K12: 78425 | L12: 78435 | M12: 78445 | N12: 78455
B14: Sales 2011
B15: Salesperson | C15: Jan | D15: Feb | E15: Mar | F15: Apr | G15: May | H15: Jun | I15: Jul | J15: Aug | K15: Sep | L15: Oct | M15: Nov | N15: Dec
B16: Luka | C16: 45673 | D16: =C16+10 -> 45683 | E16: =D16+10 -> 45693 | F16: 45703 | G16: 45713 | H16: 45723 | I16: 45733 | J16: 45743 | K16: 45753 | L16: 45763 | M16: 45773 | N16: =M16+10 -> 45783
B17: Oliver | C17: =C16+20 -> 45693 | D17: =D16+20 -> 45703 | E17: 45713 | F17: 45723 | G17: 45733 | H17: 45743 | I17: 45753 | J17: 45763 | K17: 45773 | L17: 45783 | M17: 45793 | N17: 45803
B18: Robin | C18: =C17+20 -> 45713 | D18: 45723 | E18: 45733 | F18: 45743 | G18: 45753 | H18: 45763 | I18: 45773 | J18: 45783 | K18: 45793 | L18: 45803 | M18: 45813 | N18: 45823
B19: Aron | C19: 45733 | D19: 45743 | E19: 45753 | F19: 45763 | G19: 45773 | H19: 45783 | I19: 45793 | J19: 45803 | K19: 45813 | L19: 45823 | M19: 45833 | N19: 45843
B20: Leo | C20: 45753 | D20: 45763 | E20: 45773 | F20: 45783 | G20: 45793 | H20: 45803 | I20: 45813 | J20: 45823 | K20: 45833 | L20: 45843 | M20: 45853 | N20: 45863
B21: Henry | C21: 45773 | D21: 45783 | E21: 45793 | F21: 45803 | G21: 45813 | H21: 45823 | I21: 45833 | J21: 45843 | K21: 45853 | L21: 45863 | M21: 45873 | N21: 45883
B22: James | C22: 45793 | D22: 45803 | E22: 45813 | F22: 45823 | G22: 45833 | H22: 45843 | I22: 45853 | J22: 45863 | K22: 45873 | L22: 45883 | M22: 45893 | N22: 45903
B24: Sales 2012
B25: Salesperson | C25: Jan | D25: Feb | E25: Mar | F25: Apr | G25: May | H25: Jun | I25: Jul | J25: Aug | K25: Sep | L25: Oct | M25: Nov | N25: Dec
B26: Luka | C26: 45673 | D26: =C26+10 -> 45683 | E26: =D26+10 -> 45693 | F26: 45703 | G26: 45713 | H26: 45723 | I26: 45733 | J26: 45743 | K26: 45753 | L26: 45763 | M26: 45773 | N26: =M26+10 -> 45783
B27: Oliver | C27: =C26+30 -> 45703 | D27: =D26+30 -> 45713 | E27: 45723 | F27: 45733 | G27: 45743 | H27: 45753 | I27: 45763 | J27: 45773 | K27: 45783 | L27: 45793 | M27: 45803 | N27: 45813
B28: Robin | C28: =C27+30 -> 45733 | D28: 45743 | E28: 45753 | F28: 45763 | G28: 45773 | H28: 45783 | I28: 45793 | J28: 45803 | K28: 45813 | L28: 45823 | M28: 45833 | N28: 45843
B29: Aron | C29: 45763 | D29: 45773 | E29: 45783 | F29: 45793 | G29: 45803 | H29: 45813 | I29: 45823 | J29: 45833 | K29: 45843 | L29: 45853 | M29: 45863 | N29: 45873
B30: Leo | C30: 45793 | D30: 45803 | E30: 45813 | F30: 45823 | G30: 45833 | H30: 45843 | I30: 45853 | J30: 45863 | K30: 45873 | L30: 45883 | M30: 45893 | N30: 45903
B31: Henry | C31: 45823 | D31: 45833 | E31: 45843 | F31: 45853 | G31: 45863 | H31: 45873 | I31: 45883 | J31: 45893 | K31: 45903 | L31: 45913 | M31: 45923 | N31: 45933
B32: James | C32: 45853 | D32: 45863 | E32: 45873 | F32: 45883 | G32: 45893 | H32: 45903 | I32: 45913 | J32: 45923 | K32: 45933 | L32: 45943 | M32: 45953 | N32: 45963
B34: Sales 2013
B35: Salesperson | C35: Jan | D35: Feb | E35: Mar | F35: Apr | G35: May | H35: Jun | I35: Jul | J35: Aug | K35: Sep | L35: Oct | M35: Nov | N35: Dec
B36: Luka | C36: 45673 | D36: =C36+10 -> 45683 | E36: =D36+10 -> 45693 | F36: 45703 | G36: 45713 | H36: 45723 | I36: 45733 | J36: 45743 | K36: 45753 | L36: 45763 | M36: 45773 | N36: =M36+10 -> 45783
B37: Oliver | C37: 78392 | D37: =C37+10 -> 78402 | E37: 78412 | F37: 78422 | G37: 78432 | H37: 78442 | I37: 78452 | J37: 78462 | K37: 78472 | L37: 78482 | M37: 78492 | N37: 78502
B38: Robin | C38: 89346 | D38: 89356 | E38: 89366 | F38: 89376 | G38: 89386 | H38: 89396 | I38: 89406 | J38: 89416 | K38: 89426 | L38: 89436 | M38: 89446 | N38: 89456
B39: Aron | C39: 67876 | D39: 67886 | E39: 67896 | F39: 67906 | G39: 67916 | H39: 67926 | I39: 67936 | J39: 67946 | K39: 67956 | L39: 67966 | M39: 67976 | N39: 67986
B40: Leo | C40: 47167 | D40: 47177 | E40: 47187 | F40: 47197 | G40: 47207 | H40: 47217 | I40: 47227 | J40: 47237 | K40: 47247 | L40: 47257 | M40: 47267 | N40: 47277
B41: Henry | C41: 90362 | D41: 90372 | E41: 90382 | F41: 90392 | G41: 90402 | H41: 90412 | I41: 90422 | J41: 90432 | K41: 90442 | L41: 90452 | M41: 90462 | N41: 90472
B42: James | C42: 78345 | D42: 78355 | E42: 78365 | F42: 78375 | G42: 78385 | H42: 78395 | I42: 78405 | J42: 78415 | K42: 78425 | L42: 78435 | M42: 78445 | N42: 78455
B44: Sales 2014
B45: Salesperson | C45: Jan | D45: Feb | E45: Mar | F45: Apr | G45: May | H45: Jun | I45: Jul | J45: Aug | K45: Sep | L45: Oct | M45: Nov | N45: Dec
B46: Luka | C46: 45673 | D46: =C46+10 -> 45683 | E46: =D46+10 -> 45693 | F46: 45703 | G46: 45713 | H46: 45723 | I46: 45733 | J46: 45743 | K46: 45753 | L46: 45763 | M46: 45773 | N46: =M46+10 -> 45783
B47: Oliver | C47: =C46+20 -> 45693 | D47: =D46+20 -> 45703 | E47: 45713 | F47: 45723 | G47: 45733 | H47: 45743 | I47: 45753 | J47: 45763 | K47: 45773 | L47: 45783 | M47: 45793 | N47: 45803
B48: Robin | C48: =C47+20 -> 45713 | D48: 45723 | E48: 45733 | F48: 45743 | G48: 45753 | H48: 45763 | I48: 45773 | J48: 45783 | K48: 45793 | L48: 45803 | M48: 45813 | N48: 45823
B49: Aron | C49: 45733 | D49: 45743 | E49: 45753 | F49: 45763 | G49: 45773 | H49: 45783 | I49: 45793 | J49: 45803 | K49: 45813 | L49: 45823 | M49: 45833 | N49: 45843
B50: Leo | C50: 45753 | D50: 45763 | E50: 45773 | F50: 45783 | G50: 45793 | H50: 45803 | I50: 45813 | J50: 45823 | K50: 45833 | L50: 45843 | M50: 45853 | N50: 45863
B51: Henry | C51: 45773 | D51: 45783 | E51: 45793 | F51: 45803 | G51: 45813 | H51: 45823 | I51: 45833 | J51: 45843 | K51: 45853 | L51: 45863 | M51: 45873 | N51: 45883
B52: James | C52: 45793 | D52: 45803 | E52: 45813 | F52: 45823 | G52: 45833 | H52: 45843 | I52: 45853 | J52: 45863 | K52: 45873 | L52: 45883 | M52: 45893 | N52: 45903

Sheet Macro 3
B2: VBA for ExportAsFixedFormat PDF: Example 3
B4: Sales 2010
B5: Salesperson | C5: Jan | D5: Feb | E5: Mar | F5: Apr | G5: May | H5: Jun | I5: Jul | J5: Aug | K5: Sep | L5: Oct | M5: Nov | N5: Dec
B6: Luka | C6: 45673 | D6: =C6+10 -> 45683 | E6: =D6+10 -> 45693 | F6: 45703 | G6: 45713 | H6: 45723 | I6: 45733 | J6: 45743 | K6: 45753 | L6: 45763 | M6: 45773 | N6: =M6+10 -> 45783
B7: Oliver | C7: 78392 | D7: =C7+10 -> 78402 | E7: 78412 | F7: 78422 | G7: 78432 | H7: 78442 | I7: 78452 | J7: 78462 | K7: 78472 | L7: 78482 | M7: 78492 | N7: =M7+10 -> 78502
B8: Robin | C8: 89346 | D8: 89356 | E8: 89366 | F8: 89376 | G8: 89386 | H8: 89396 | I8: 89406 | J8: 89416 | K8: 89426 | L8: 89436 | M8: 89446 | N8: =M8+10 -> 89456
B9: Aron | C9: 67876 | D9: 67886 | E9: 67896 | F9: 67906 | G9: 67916 | H9: 67926 | I9: 67936 | J9: 67946 | K9: 67956 | L9: 67966 | M9: 67976 | N9: =M9+10 -> 67986
B10: Leo | C10: 47167 | D10: 47177 | E10: 47187 | F10: 47197 | G10: 47207 | H10: 47217 | I10: 47227 | J10: 47237 | K10: 47247 | L10: 47257 | M10: 47267 | N10: =M10+10 -> 47277
B11: Henry | C11: 90362 | D11: 90372 | E11: 90382 | F11: 90392 | G11: 90402 | H11: 90412 | I11: 90422 | J11: 90432 | K11: 90442 | L11: 90452 | M11: 90462 | N11: =M11+10 -> 90472
B12: James | C12: 78345 | D12: 78355 | E12: 78365 | F12: 78375 | G12: 78385 | H12: 78395 | I12: 78405 | J12: 78415 | K12: 78425 | L12: 78435 | M12: 78445 | N12: =M12+10 -> 78455
B14: Sales 2011
B15: Salesperson | C15: Jan | D15: Feb | E15: Mar | F15: Apr | G15: May | H15: Jun | I15: Jul | J15: Aug | K15: Sep | L15: Oct | M15: Nov | N15: Dec
B16: Luka | C16: 45673 | D16: =C16+10 -> 45683 | E16: =D16+10 -> 45693 | F16: 45703 | G16: 45713 | H16: 45723 | I16: 45733 | J16: 45743 | K16: 45753 | L16: 45763 | M16: 45773 | N16: =M16+10 -> 45783
B17: Oliver | C17: =C16+20 -> 45693 | D17: =D16+20 -> 45703 | E17: 45713 | F17: 45723 | G17: 45733 | H17: 45743 | I17: 45753 | J17: 45763 | K17: 45773 | L17: 45783 | M17: 45793 | N17: 45803
B18: Robin | C18: =C17+20 -> 45713 | D18: =D17+20 -> 45723 | E18: =E17+20 -> 45733 | F18: =F17+20 -> 45743 | G18: =G17+20 -> 45753 | H18: =H17+20 -> 45763 | I18: =I17+20 -> 45773 | J18: =J17+20 -> 45783 | K18: =K17+20 -> 45793 | L18: =L17+20 -> 45803 | M18: =M17+20 -> 45813 | N18: =N17+20 -> 45823
B19: Aron | C19: 45733 | D19: 45743 | E19: 45753 | F19: 45763 | G19: 45773 | H19: 45783 | I19: 45793 | J19: 45803 | K19: 45813 | L19: 45823 | M19: 45833 | N19: 45843
B20: Leo | C20: 45753 | D20: 45763 | E20: 45773 | F20: 45783 | G20: 45793 | H20: 45803 | I20: 45813 | J20: 45823 | K20: 45833 | L20: 45843 | M20: 45853 | N20: 45863
B21: Henry | C21: 45773 | D21: 45783 | E21: 45793 | F21: 45803 | G21: 45813 | H21: 45823 | I21: 45833 | J21: 45843 | K21: 45853 | L21: 45863 | M21: 45873 | N21: 45883
B22: James | C22: 45793 | D22: 45803 | E22: 45813 | F22: 45823 | G22: 45833 | H22: 45843 | I22: 45853 | J22: 45863 | K22: 45873 | L22: 45883 | M22: 45893 | N22: 45903
B24: Sales 2012
B25: Salesperson | C25: Jan | D25: Feb | E25: Mar | F25: Apr | G25: May | H25: Jun | I25: Jul | J25: Aug | K25: Sep | L25: Oct | M25: Nov | N25: Dec
B26: Luka | C26: 45673 | D26: =C26+10 -> 45683 | E26: =D26+10 -> 45693 | F26: 45703 | G26: 45713 | H26: 45723 | I26: 45733 | J26: 45743 | K26: 45753 | L26: 45763 | M26: 45773 | N26: =M26+10 -> 45783
B27: Oliver | C27: =C26+30 -> 45703 | D27: =D26+30 -> 45713 | E27: 45723 | F27: 45733 | G27: 45743 | H27: 45753 | I27: 45763 | J27: 45773 | K27: 45783 | L27: 45793 | M27: 45803 | N27: 45813
B28: Robin | C28: =C27+30 -> 45733 | D28: 45743 | E28: 45753 | F28: 45763 | G28: 45773 | H28: 45783 | I28: 45793 | J28: 45803 | K28: 45813 | L28: 45823 | M28: 45833 | N28: 45843
B29: Aron | C29: 45763 | D29: 45773 | E29: 45783 | F29: 45793 | G29: 45803 | H29: 45813 | I29: 45823 | J29: 45833 | K29: 45843 | L29: 45853 | M29: 45863 | N29: 45873
B30: Leo | C30: 45793 | D30: 45803 | E30: 45813 | F30: 45823 | G30: 45833 | H30: 45843 | I30: 45853 | J30: 45863 | K30: 45873 | L30: 45883 | M30: 45893 | N30: 45903
B31: Henry | C31: 45823 | D31: 45833 | E31: 45843 | F31: 45853 | G31: 45863 | H31: 45873 | I31: 45883 | J31: 45893 | K31: 45903 | L31: 45913 | M31: 45923 | N31: 45933
B32: James | C32: 45853 | D32: 45863 | E32: 45873 | F32: 45883 | G32: 45893 | H32: 45903 | I32: 45913 | J32: 45923 | K32: 45933 | L32: 45943 | M32: 45953 | N32: 45963
B34: Sales 2013
B35: Salesperson | C35: Jan | D35: Feb | E35: Mar | F35: Apr | G35: May | H35: Jun | I35: Jul | J35: Aug | K35: Sep | L35: Oct | M35: Nov | N35: Dec
B36: Luka | C36: 45673 | D36: =C36+10 -> 45683 | E36: =D36+10 -> 45693 | F36: 45703 | G36: 45713 | H36: 45723 | I36: 45733 | J36: 45743 | K36: 45753 | L36: 45763 | M36: 45773 | N36: =M36+10 -> 45783
B37: Oliver | C37: 78392 | D37: =C37+10 -> 78402 | E37: 78412 | F37: 78422 | G37: 78432 | H37: 78442 | I37: 78452 | J37: 78462 | K37: 78472 | L37: 78482 | M37: 78492 | N37: 78502
B38: Robin | C38: 89346 | D38: =C38+10 -> 89356 | E38: 89366 | F38: 89376 | G38: 89386 | H38: 89396 | I38: 89406 | J38: 89416 | K38: 89426 | L38: 89436 | M38: 89446 | N38: 89456
B39: Aron | C39: 67876 | D39: =C39+10 -> 67886 | E39: 67896 | F39: 67906 | G39: 67916 | H39: 67926 | I39: 67936 | J39: 67946 | K39: 67956 | L39: 67966 | M39: 67976 | N39: 67986
B40: Leo | C40: 47167 | D40: =C40+10 -> 47177 | E40: 47187 | F40: 47197 | G40: 47207 | H40: 47217 | I40: 47227 | J40: 47237 | K40: 47247 | L40: 47257 | M40: 47267 | N40: 47277
B41: Henry | C41: 90362 | D41: =C41+10 -> 90372 | E41: 90382 | F41: 90392 | G41: 90402 | H41: 90412 | I41: 90422 | J41: 90432 | K41: 90442 | L41: 90452 | M41: 90462 | N41: 90472
B42: James | C42: 78345 | D42: =C42+10 -> 78355 | E42: 78365 | F42: 78375 | G42: 78385 | H42: 78395 | I42: 78405 | J42: 78415 | K42: 78425 | L42: 78435 | M42: 78445 | N42: 78455
B44: Sales 2014
B45: Salesperson | C45: Jan | D45: Feb | E45: Mar | F45: Apr | G45: May | H45: Jun | I45: Jul | J45: Aug | K45: Sep | L45: Oct | M45: Nov | N45: Dec
B46: Luka | C46: 45673 | D46: =C46+10 -> 45683 | E46: =D46+10 -> 45693 | F46: 45703 | G46: 45713 | H46: 45723 | I46: 45733 | J46: 45743 | K46: 45753 | L46: 45763 | M46: 45773 | N46: =M46+10 -> 45783
B47: Oliver | C47: =C46+20 -> 45693 | D47: =D46+20 -> 45703 | E47: =E46+20 -> 45713 | F47: =F46+20 -> 45723 | G47: =G46+20 -> 45733 | H47: =H46+20 -> 45743 | I47: =I46+20 -> 45753 | J47: =J46+20 -> 45763 | K47: =K46+20 -> 45773 | L47: =L46+20 -> 45783 | M47: =M46+20 -> 45793 | N47: =N46+20 -> 45803
B48: Robin | C48: =C47+20 -> 45713 | D48: 45723 | E48: 45733 | F48: 45743 | G48: 45753 | H48: 45763 | I48: 45773 | J48: 45783 | K48: 45793 | L48: 45803 | M48: 45813 | N48: 45823
B49: Aron | C49: 45733 | D49: 45743 | E49: 45753 | F49: 45763 | G49: 45773 | H49: 45783 | I49: 45793 | J49: 45803 | K49: 45813 | L49: 45823 | M49: 45833 | N49: 45843
B50: Leo | C50: 45753 | D50: 45763 | E50: 45773 | F50: 45783 | G50: 45793 | H50: 45803 | I50: 45813 | J50: 45823 | K50: 45833 | L50: 45843 | M50: 45853 | N50: 45863
B51: Henry | C51: 45773 | D51: 45783 | E51: 45793 | F51: 45803 | G51: 45813 | H51: 45823 | I51: 45833 | J51: 45843 | K51: 45853 | L51: 45863 | M51: 45873 | N51: 45883
B52: James | C52: 45793 | D52: 45803 | E52: 45813 | F52: 45823 | G52: 45833 | H52: 45843 | I52: 45853 | J52: 45863 | K52: 45873 | L52: 45883 | M52: 45893 | N52: 45903
